bitfinex-derivatives/quotes_ETHF0:USTF0_20250602
["timestamp","ask_amount","ask_price","bid_price","bid_amount"]
[1748848717163,4.249,2514.5,2514.4,1.2806]
[1748848717372,0.47699,2514.5,2514.4,1.2806]
[1748848717572,23.70899,2514.6,2514.3,3.68482]
[1748848717771,1.2821,2514.5,2514.3,3.2078]
[1748848718279,5.5311,2514.5,2514.4,0.47701]
[1748848718478,4.249,2514.5,2514.4,0.47701]
[1748848718877,23.219,2514.6,2514.4,0.47699]
[1748848719175,23.69398,2514.6,2514.4,1.85539]
[1748848719376,23.69298,2514.6,2514.4,1.85539]
[1748848719584,4.9202,2514.7,2514.5,0.47699]
[1748848719873,0.47697,2514.6,2514.4,1.1074]
[1748848720178,1.2783,2514.6,2514.4,1.1074]
[1748848720373,1.75527,2514.6,2514.4,0.6304]
[1748848720768,0.47699,2514.5,2514.4,0.6304]
[1748848721578,6.00428,2514.6,2514.4,0.6304]
[1748848721880,4.249,2514.6,2514.3,3.2078]
[1748848722079,0.47701,2514.4,2514.3,3.2078]
[1748848724378,1.2783,2514.5,2514.3,3.2078]
[1748848724683,23.189,2514.6,2514.3,3.2078]
[1748848724879,24.5719,2514.6,2514.3,3.2078]
[1748848725080,1.14816,2514.7,2514.4,0.47701]
[1748848725277,0.6712,2514.7,2514.6,0.47697]
[1748848725680,0.47692,2514.9,2514.6,0.47697]
[1748848725876,4.319,2515.0,2514.6,1.3545]
[1748848725877,0.47695,2514.7,2514.6,1.3545]
[1748848729479,4.79606,2514.1,2514.0,3.2078]
[1748848729682,9.79606,2514.1,2514.0,3.2078]
[1748848730287,4.79606,2514.1,2514.0,3.2078]
[1748848730589,23.74606,2514.1,2514.0,3.2078]
[1748848730888,0.47712,2513.8,2513.7,0.00597229]
[1748848733591,1.78662,2513.8,2513.7,0.00597229]
[1748848734094,0.4772,2513.4,2513.3,0.00806771]
[1748848734395,23.274,2513.4,2513.3,0.00806771]
[1748848734694,0.6829,2513.9,2513.3,0.00806771]
[1748848734695,0.47719,2513.5,2513.3,0.00806771]
[1748848734891,23.28,2513.4,2513.3,0.00806771]
[1748848735188,4.32,2513.4,2513.3,3.21586771]
[1748848735398,0.48313229,2513.6,2513.3,5.03266771]
[1748848735690,0.47718,2513.5,2513.3,4.55546771]
[1748848735895,19.43518,2513.5,2513.3,4.55546771]
[1748848736604,23.273,2513.5,2513.3,5.03267771]
[1748848736794,0.00597229,2513.6,2513.3,5.03267771]
[1748848737106,18.96497229,2513.6,2513.4,0.47719]
[1748848737403,19.44213229,2513.6,2513.5,1.3396]
[1748848737901,0.00597229,2513.6,2513.5,1.3396]
[1748848738306,0.00597229,2513.6,2513.5,1.81678]
[1748848738803,0.48313229,2513.6,2513.5,1.3396]
[1748848740400,0.00597229,2513.6,2513.5,1.3396]
[1748848740705,0.00597229,2513.6,2513.5,1.81678]
[1748848741208,0.00597229,2513.6,2513.5,6.81678]
[1748848741403,0.00542239,2513.8,2513.7,0.47714]
[1748848741703,0.00542239,2513.8,2513.7,3.2078]
[1748848741898,0.00542239,2513.8,2513.7,4.503]
[1748848742100,0.00542239,2513.8,2513.7,4.98014]
[1748848743794,0.00542239,2513.8,2513.7,9.98014]
[1748848744002,0.47702,2514.4,2514.1,0.47705]
[1748848744003,18.937,2514.4,2514.1,0.47705]
[1748848744299,0.47703,2514.3,2514.2,5.8488]
[1748848746806,18.914,2514.4,2514.2,6.32584]
[1748848747007,19.39101,2514.4,2514.3,1.3119]
[1748848747307,19.38601,2514.4,2514.3,1.3119]
[1748848747510,0.47703,2514.3,2514.2,4.5369]
[1748848747904,0.47703,2514.3,2514.2,3.2078]
[1748848748205,1.84943,2514.3,2514.2,3.2078]
[1748848748415,23.226,2514.3,2514.2,3.2078]
[1748848748714,18.907,2514.5,2514.3,0.47702]
[1748848748913,18.907,2514.5,2514.3,1.3138]
[1748848749414,0.47701,2514.4,2514.3,1.3138]
[1748848749609,3.2078,2514.7,2514.3,1.3138]
[1748848749811,19.37601,2514.4,2514.3,1.3138]
[1748848750410,19.37601,2514.4,2514.3,2.6416]
[1748848750914,19.36701,2514.4,2514.3,2.6416]
[1748848751711,19.36701,2514.4,2514.3,0.6301]
[1748848751911,20.65641,2514.4,2514.3,0.6301]
[1748848752514,0.47703,2514.3,2514.2,3.2078]
[1748848752917,2.44313,2514.3,2514.2,3.2078]
[1748848754108,2.44313,2514.3,2513.5,1.16921175]
[1748848754109,1.19269,2514.1,2513.5,1.16921175]
[1748848754314,1.19269,2514.1,2513.6,3.2078]
[1748848754315,0.47714,2513.7,2513.6,3.2078]
[1748848754823,0.4772,2513.4,2513.3,3.2078]
[1748848755119,18.872,2513.4,2513.3,3.2078]
[1748848755323,18.872,2513.4,2513.3,4.5172]
[1748848756916,19.3492,2513.4,2513.3,4.5172]
[1748848758124,18.872,2513.4,2513.3,4.5172]
[1748848759223,19.3492,2513.4,2513.3,4.5172]
[1748848759724,0.4772,2513.4,2513.3,4.5172]
[1748848760024,19.3182,2513.4,2513.3,4.5172]
[1748848760416,19.3182,2513.4,2513.3,3.2078]
[1748848760918,0.47723,2513.2,2513.1,0.00597229]
[1748848762122,1.79713,2513.2,2513.1,0.00597229]
[1748848764126,0.47723,2513.2,2513.1,3.21377229]
[1748848764321,0.47718,2513.5,2513.2,0.47722]
[1748848764524,0.47722,2513.3,2513.1,3.21377229]
[1748848764728,0.47722,2513.3,2513.1,4.47457229]
[1748848764926,0.47722,2513.3,2513.2,1.2608]
[1748848765629,19.31722,2513.3,2513.2,1.2608]
[1748848766625,0.47723,2513.2,2513.1,3.21377229]
[1748848767530,19.33323,2513.2,2513.1,3.21377229]
[1748848768829,20.71883,2513.2,2513.1,3.21377229]
[1748848769032,24.99883,2513.2,2513.1,3.21377229]
[1748848769929,24.99883,2513.2,2513.1,0.00597229]
[1748848773129,24.98683,2513.2,2513.1,0.00597229]
[1748848773331,1.86283,2513.2,2513.1,0.00597229]
[1748848773627,24.98383,2513.2,2513.1,0.00597229]
[1748848774729,29.98383,2513.2,2513.1,0.00597229]
[1748848774931,1.19319,2513.0,2512.2,4.37754408]
[1748848775124,0.47739,2512.5,2512.3,1.3731]
[1748848775324,19.41739,2512.4,2512.3,1.3731]
[1748848776224,0.4774,2512.3,2512.2,3.2078]
[1748848776427,18.929,2512.3,2512.2,3.2078]
[1748848777226,19.40641,2512.3,2512.2,3.2078]
[1748848778331,0.47742,2512.2,2512.1,0.00597229]
[1748848778632,2.53692,2512.2,2512.1,0.00597229]
[1748848779129,2.53692,2512.2,2511.4,1.85377]
[1748848779130,0.47751,2511.8,2511.4,1.85377]
[1748848779336,7.0595,2512.2,2511.5,4.5728]
[1748848779337,18.944,2511.7,2511.5,4.5728]
[1748848779540,18.944,2511.7,2511.6,0.47754]
[1748848779836,2.0595,2512.2,2511.5,4.5728]
[1748848780029,0.47747,2512.0,2511.9,3.2078]
[1748848780336,19.42447,2512.0,2511.9,3.2078]
[1748848780532,0.47747,2512.0,2511.9,3.2078]
[1748848780738,0.47744,2512.1,2511.9,3.2078]
[1748848780937,0.47744,2512.1,2512.0,2.0155]
[1748848781138,19.42044,2512.1,2512.0,2.0155]
[1748848783035,0.47746,2512.0,2511.9,3.2078]
[1748848784039,4.76045,2512.1,2511.9,3.2078]
[1748848784240,4.76045,2512.1,2512.0,1.288]
[1748848784432,23.68245,2512.1,2512.0,1.288]
[1748848787943,0.47745,2512.1,2512.0,1.288]
[1748848788139,19.37245,2512.1,2512.0,1.288]
[1748848788346,0.47745,2512.1,2512.0,1.288]
[1748848788539,19.37045,2512.1,2512.0,1.288]
[1748848789740,0.47746,2512.0,2511.9,3.2078]
[1748848790347,0.47746,2512.0,2511.9,4.514]
[1748848791246,1.2774,2512.4,2512.2,0.47741]
[1748848791437,41.50286,2512.9,2512.2,3.2078]
[1748848791438,3.13093,2512.8,2512.2,3.2078]
[1748848791645,23.177,2512.5,2512.2,3.2078]
[1748848791939,18.87,2512.4,2512.3,3.07849]
[1748848792142,18.87,2512.4,2512.3,2.6011]
[1748848792342,18.876,2512.4,2512.3,2.6011]
[1748848792749,18.873,2512.4,2512.3,2.6011]
[1748848792949,3.21377229,2512.6,2512.3,2.6011]
[1748848793155,19.35532229,2512.6,2512.5,3.2078]
[1748848793651,19.35532229,2512.6,2512.5,4.5683]
[1748848796550,0.48332229,2512.6,2512.5,4.5683]
[1748848796857,19.05367229,2512.6,2512.5,5.04567]
[1748848797158,0.20367229,2512.6,2512.5,5.04567]
[1748848797649,0.20367229,2512.6,2512.5,6.21495939]
[1748848797854,0.20367229,2512.6,2512.5,5.04567]
[1748848798245,0.20367229,2512.6,2512.5,10.04567]
[1748848798455,0.20367229,2512.6,2512.5,6.58840986]
[1748848799959,0.20367229,2512.6,2512.5,5.04567]
[1748848800551,0.68102229,2512.6,2512.5,5.04567]
[1748848800759,0.20367229,2512.6,2512.5,6.21598786]
[1748848801057,0.20367229,2512.6,2512.5,11.21598786]
[1748848801359,0.47728,2513.0,2512.8,0.4773]
[1748848801554,0.47728,2513.0,2512.9,2.662]
[1748848802249,19.30828,2513.0,2512.9,2.662]
[1748848802855,0.47732,2512.8,2512.6,0.47734]
[1748848803359,0.47731,2512.8,2512.7,1.3445]
[1748848803654,0.4773,2512.9,2512.7,1.82183]
[1748848803855,0.4773,2512.9,2512.8,3.2078]
[1748848804052,0.6427,2513.1,2512.8,3.2078]
[1748848804257,19.29128,2513.0,2512.9,1.3445]
[1748848804460,1.11996,2513.1,2512.9,1.9746]
[1748848804653,18.814,2513.0,2512.9,1.9746]
[1748848804850,1.11996,2513.1,2512.9,1.9746]
[1748848805353,0.47727,2513.0,2512.9,1.9746]
[1748848805754,0.47727,2513.0,2512.8,4.37747796]
[1748848805755,0.47729,2512.9,2512.8,3.2078]
[1748848805955,1.80839,2512.9,2512.8,3.2078]
[1748848806149,0.6427,2513.1,2512.8,3.2078]
[1748848806454,19.28829,2512.9,2512.8,3.2078]
[1748848807753,19.94399,2512.9,2512.8,3.2078]
[1748848808564,1.13299,2512.9,2512.8,3.2078]
[1748848808753,19.92899,2512.9,2512.8,3.2078]
[1748848808950,0.4774,2512.3,2512.2,4.37747796]
[1748848809154,0.4774,2512.3,2512.2,3.2078]
[1748848809155,19.2874,2512.3,2512.2,3.2078]
[1748848810258,0.4774,2512.3,2512.2,3.2078]
[1748848810453,19.2854,2512.3,2512.2,3.2078]
[1748848811462,23.5864,2512.3,2512.2,3.2078]
[1748848811761,0.47746,2512.0,2511.9,3.2078]
[1748848811958,19.29046,2512.0,2511.9,3.2078]
[1748848813459,20.55986,2512.0,2511.9,3.2078]
[1748848814563,0.47752,2511.7,2511.6,0.00597229]
[1748848814759,4.78052,2511.7,2511.6,0.00597229]
[1748848815659,6.17562,2511.7,2511.6,0.00597229]
[1748848817267,4.6029,2511.7,2511.1,3.2078]
[1748848817568,0.4776,2511.3,2511.2,1.9568]
[1748848817867,19.2686,2511.3,2511.2,1.9568]
[1748848818466,0.4776,2511.3,2511.2,1.9568]
[1748848818667,19.2646,2511.3,2511.2,1.9568]
[1748848819761,0.4776,2511.3,2511.2,1.9568]
[1748848819968,19.2526,2511.3,2511.2,1.9568]
[1748848820662,19.2476,2511.3,2511.2,1.9568]
[1748848820864,0.4776,2511.3,2511.2,1.9568]
[1748848821162,19.2446,2511.3,2511.2,1.9568]
[1748848821471,19.2446,2511.3,2511.2,0.6529]
[1748848821864,19.2446,2511.3,2511.2,1.9435]
[1748848822271,0.4776,2511.3,2511.2,0.6529]
[1748848822564,19.2396,2511.3,2511.2,1.9435]
[1748848822967,0.47761,2511.2,2511.1,3.8837]
[1748848823164,1.78131,2511.2,2511.1,3.2078]
[1748848824466,20.52831,2511.2,2511.1,3.2078]
[1748848824661,20.52631,2511.2,2511.1,3.2078]
[1748848824869,20.52531,2511.2,2511.1,3.2078]
[1748848825266,1.78131,2511.2,2511.1,3.2078]
[1748848825466,20.52131,2511.2,2511.1,3.2078]
[1748848828469,1.78131,2511.2,2511.1,3.2078]
[1748848828664,19.19961,2511.2,2511.1,3.2078]
[1748848833275,0.47763,2511.1,2511.0,0.00597229]
[1748848833475,1.78883,2511.1,2511.0,0.00597229]
[1748848837280,24.70883,2511.1,2511.0,0.00597229]
[1748848839978,24.90793,2511.1,2511.0,0.00597229]
[1748848847377,24.84993,2511.1,2511.0,0.00597229]
[1748848847786,0.67673,2511.1,2511.0,0.00597229]
[1748848848086,23.43173,2511.1,2511.0,0.00597229]
[1748848848482,23.43173,2511.1,2511.0,1.37777229]
[1748848848881,4.80573,2511.1,2511.0,1.37777229]
[1748848849189,23.43473,2511.1,2511.0,1.37777229]
[1748848851086,22.9571,2511.1,2510.5,1.17325383]
[1748848851281,0.47773,2510.6,2510.5,1.17325383]
[1748848851482,0.47773,2510.6,2510.5,2.46525383]
[1748848852292,0.47773,2510.6,2510.5,1.292]
[1748848852494,0.47773,2510.6,2510.5,2.46627849]
[1748848855595,18.599,2510.6,2510.5,1.76975]
[1748848855786,18.599,2510.6,2510.5,3.31247986]
[1748848855787,18.601,2510.6,2510.5,3.31247986]
[1748848855983,0.47767,2510.9,2510.5,2.83473986]
[1748848856187,0.47771,2510.7,2510.6,1.17456027]
[1748848856383,0.47773,2510.6,2510.5,2.83473986]
[1748848856887,0.47772,2510.7,2510.5,2.83473986]
[1748848857195,0.47769,2510.8,2510.6,2.02045986]
[1748848857500,19.07369,2510.8,2510.7,5.66055823]
[1748848857796,0.47769,2510.8,2510.7,5.1767]
[1748848859197,0.47769,2510.8,2510.7,5.65441]
[1748848859398,0.47768,2510.9,2510.7,7.19714986]
[1748848859592,0.47768,2510.9,2510.8,1.9613]
[1748848860099,0.1991,2511.1,2510.8,6.9613]
[1748848860402,0.47766,2511.0,2510.9,1.17477694]
[1748848860604,0.47766,2511.0,2510.9,1.3259]
[1748848860899,19.25775,2511.1,2510.9,2.97848414]
[1748848861097,19.26575,2511.1,2511.0,1.17491414]
[1748848861399,19.26575,2511.1,2511.0,1.3259]
[1748848861896,0.67675,2511.1,2511.0,4.5337]
[1748848862093,18.7831,2511.1,2511.0,4.5337]
[1748848862500,0.1991,2511.1,2511.0,6.55408986]
[1748848862795,0.47754,2511.6,2511.4,0.47757]
[1748848862997,0.47753,2511.7,2511.5,5.60875]
[1748848863196,0.00597229,2511.9,2511.5,7.87015398]
[1748848863411,0.00597229,2511.9,2511.8,1.17345306]
[1748848863593,0.00597229,2511.9,2511.7,2.04262656]
[1748848863799,0.00597229,2511.9,2511.8,1.2725]
[1748848863994,0.48345229,2511.9,2511.8,1.2725]
[1748848864192,0.00597229,2511.9,2511.8,1.2725]
[1748848864395,0.48345229,2511.9,2511.8,1.2725]
[1748848865000,0.00597229,2511.9,2511.8,1.2725]
[1748848866202,0.48345229,2511.9,2511.8,1.2725]
[1748848866401,0.00597229,2511.9,2511.8,1.2725]
[1748848866697,0.48345229,2511.9,2511.8,1.2725]
[1748848869793,0.00597229,2511.9,2511.8,1.2725]
[1748848870393,0.00597229,2511.9,2511.8,4.9578]
[1748848872593,0.48345229,2511.9,2511.8,4.4803]
[1748848872998,0.00597229,2511.9,2511.8,4.9578]
[1748848875998,0.48345229,2511.9,2511.8,3.2078]
[1748848876206,2.48455229,2511.9,2511.8,3.2078]
[1748848876802,1.14745229,2511.9,2511.8,3.2078]
[1748848877100,1.14745229,2511.9,2511.8,5.0756]
[1748848877303,1.14745229,2511.9,2511.8,4.5981]
[1748848878204,1.14745229,2511.9,2511.8,3.2078]
[1748848878404,2.48515229,2511.9,2511.8,3.2078]
[1748848881206,21.00515229,2511.9,2511.8,3.2078]
[1748848884205,0.47752,2511.7,2511.6,0.00597229]
[1748848885212,5.47752,2511.7,2511.6,0.00597229]
[1748848886106,5.47752,2511.7,2511.2,1.1686931]
[1748848886107,0.4776,2511.3,2511.2,1.1686931]
[1748848886321,18.512,2511.3,2511.0,1.1686931]
[1748848886508,0.47765,2511.0,2510.9,0.6735]
[1748848886818,0.47767,2510.9,2510.8,4.3764931]
[1748848887006,0.47767,2510.9,2510.8,3.2078]
[1748848887306,0.47767,2510.9,2510.8,4.3764931]
[1748848887503,0.47769,2510.8,2510.7,1.1686931]
[1748848887706,0.47771,2510.7,2510.6,0.00597229]
[1748848887902,18.98971,2510.7,2510.6,0.00597229]
[1748848888306,19.66111,2510.7,2510.6,0.00597229]
[1748848892212,1.14911,2510.7,2510.6,0.00597229]
[1748848892512,19.64411,2510.7,2510.6,0.00597229]
[1748848892912,19.64211,2510.7,2510.6,0.00597229]
[1748848893311,22.84991,2510.7,2510.6,0.00597229]
[1748848893511,19.64211,2510.7,2510.6,0.00597229]
[1748848895407,0.4778,2510.2,2510.1,3.77227665]
[1748848895610,0.4778,2510.2,2510.1,2.6034]
[1748848896710,0.4778,2510.3,2510.1,2.6034]
[1748848897312,0.4778,2510.2,2510.1,1.3344]
[1748848897515,0.4778,2510.2,2510.1,2.6616]
[1748848897911,0.47779,2510.3,2510.1,2.6616]
[1748848898614,1.13919,2510.3,2510.1,2.6616]
[1748848898811,1.13919,2510.3,2510.1,3.13942]
[1748848899318,0.6614,2510.3,2510.2,0.4778]
[1748848899508,0.6614,2510.3,2510.1,3.13942]
[1748848900119,1.13919,2510.3,2510.1,2.6616]
[1748848901011,1.13919,2510.3,2510.1,3.13942]
[1748848901718,1.13919,2510.3,2510.1,2.6616]
[1748848903225,0.4778,2510.2,2510.1,2.6616]
[1748848903918,0.4778,2510.2,2510.1,3.13942]
[1748848904218,1.1392,2510.3,2510.1,3.13942]
[1748848904421,0.4778,2510.2,2510.1,3.13942]
[1748848904811,0.4778,2510.2,2510.1,2.6616]
[1748848905012,0.4778,2510.2,2510.1,3.13942]
[1748848905213,1.1392,2510.3,2510.1,3.13942]
[1748848905515,0.4778,2510.2,2510.1,2.6616]
[1748848906215,0.4778,2510.2,2510.1,3.13942]
[1748848906416,1.1392,2510.3,2510.1,3.13942]
[1748848906613,0.4778,2510.2,2510.1,2.6616]
[1748848907618,1.1392,2510.3,2510.1,3.13942]
[1748848908113,1.1392,2510.3,2510.2,1.3921]
[1748848908920,0.00597229,2510.4,2510.2,1.3921]
[1748848909118,0.00597229,2510.4,2510.3,0.47779]
[1748848909622,0.00597229,2510.4,2510.3,1.86989]
[1748848910419,0.00597229,2510.4,2510.3,6.86989]
[1748848910719,0.00597229,2510.4,2510.3,8.43500656]
[1748848911814,0.00597229,2510.4,2510.3,6.86989]
[1748848912015,0.00597229,2510.4,2510.3,10.90289]
[1748848912621,0.00597229,2510.4,2510.3,13.25056485]
[1748848914524,0.20507229,2510.4,2510.3,13.25056485]
[1748848914728,0.20507229,2510.4,2510.3,10.90289]
[1748848915626,0.20507229,2510.4,2510.3,5.90289]
[1748848916342,0.20507229,2510.4,2510.3,1.86989]
[1748848916824,0.20507229,2510.4,2510.3,4.21510662]
[1748848917215,0.20507229,2510.4,2510.3,1.86989]
[1748848918526,0.20507229,2510.4,2510.3,4.2150431]
[1748848918725,0.20507229,2510.4,2510.3,1.86989]
[1748848919426,0.20507229,2510.4,2510.3,5.07769]
[1748848920522,0.20507229,2510.4,2510.3,7.4228431]
[1748848920728,0.20507229,2510.4,2510.3,5.07769]
[1748848921024,0.20507229,2510.4,2510.3,7.4228431]
[1748848921527,0.20507229,2510.4,2510.3,5.07769]
[1748848922221,0.20507229,2510.4,2510.3,7.4228431]
[1748848927525,0.68284229,2510.4,2510.3,6.64282214]
[1748848927726,0.68284229,2510.4,2510.3,4.77293214]
[1748848927921,0.68284229,2510.4,2510.3,5.25072707]
[1748848928326,0.68284229,2510.4,2510.3,4.77293707]
[1748848928623,0.68284229,2510.4,2510.3,4.38172185]
[1748848929223,0.47779,2510.3,2510.2,1.17392185]
[1748848929415,2.42059,2510.3,2510.2,1.17392185]
[1748848930421,0.47782,2510.1,2510.0,4.58172185]
[1748848930627,0.47782,2510.1,2510.0,3.4078]
[1748848930823,2.42621,2510.2,2510.0,3.4078]
[1748848931129,1.77702,2510.1,2510.0,0.2]
[1748848933230,0.6492,2510.2,2510.0,3.4078]
[1748848933428,0.20507229,2510.4,2510.3,0.47779]
[1748848933622,0.20507229,2510.4,2510.3,3.68559]
[1748848934223,0.20507229,2510.4,2510.3,6.51542707]
[1748848934428,0.20507229,2510.4,2510.3,4.95029]
[1748848937541,0.68284229,2510.4,2510.3,2.34615592]
[1748848937742,0.20507229,2510.4,2510.3,2.04230988]
[1748848937933,0.20507229,2510.4,2510.3,0.47779]
[1748848938536,0.20507229,2510.4,2510.3,2.04226961]
[1748848938736,0.20507229,2510.4,2510.3,0.47779]
[1748848938938,0.20507229,2510.4,2510.3,2.04238136]
[1748848939144,0.20507229,2510.4,2510.3,1.56459136]
[1748848939442,0.20507229,2510.4,2510.3,2.04238136]
[1748848939638,0.20507229,2510.4,2510.3,1.56459136]
[1748848939838,0.20507229,2510.4,2510.3,2.04238136]
[1748848940244,0.20507229,2510.4,2510.3,2.82394592]
[1748848940444,0.20507229,2510.4,2510.3,4.88942486]
[1748848940844,0.20507229,2510.4,2510.3,8.92042486]
[1748848941043,0.20507229,2510.4,2510.3,5.78779]
[1748848941244,0.20507229,2510.4,2510.3,8.92042486]
[1748848942453,0.20507229,2510.4,2510.3,5.78779]
[1748848943455,0.20507229,2510.4,2510.3,1.75679]
[1748848943850,0.20507229,2510.4,2510.3,4.103408]
[1748848944545,0.20507229,2510.4,2510.3,2.824408]
[1748848944850,0.20507229,2510.4,2510.3,4.790608]
[1748848945252,0.20507229,2510.4,2510.3,2.44399]
[1748848946351,0.20507229,2510.4,2510.3,5.65179]
[1748848946957,0.20507229,2510.4,2510.3,10.65179]
[1748848947251,1.2793,2511.0,2510.9,0.47767]
[1748848948253,1.9158,2511.0,2510.9,1.65070504]
[1748848948452,1.9158,2511.0,2510.9,1.6505313]
[1748848949055,2.39345,2511.0,2510.9,1.1728613]
[1748848949558,1.9158,2511.0,2510.9,0.47767]
[1748848949957,2.39345,2511.0,2510.8,1.6505413]
[1748848950665,0.47767,2510.9,2510.8,1.1728613]
[1748848950956,0.47769,2510.8,2510.7,1.1728613]
[1748848951157,0.47773,2510.6,2510.5,1.1728613]
[1748848951858,2.41833,2510.6,2510.4,3.68556]
[1748848952056,1.9406,2510.6,2510.3,1.1728613]
[1748848952256,0.47777,2510.4,2510.3,1.1728613]
[1748848952665,0.47777,2510.4,2510.3,1.17336051]
[1748848953461,1.2857,2510.5,2510.3,1.65114985]
[1748848953665,0.47777,2510.4,2510.3,1.17336985]
[1748848954357,18.94477,2510.4,2510.3,1.17336985]
[1748848954860,0.47779,2510.3,2510.2,4.77229314]
[1748848955161,1.74459,2510.3,2510.2,4.77229314]
[1748848955463,1.74459,2510.3,2510.2,3.2078]
[1748848955659,1.74459,2510.3,2510.2,4.38114267]
[1748848956363,1.2668,2510.3,2510.2,4.85894267]
[1748848956761,1.2668,2510.3,2510.2,4.38114267]
[1748848956960,1.74459,2510.3,2510.2,4.38114267]
[1748848957157,1.74459,2510.3,2510.2,4.38117203]
[1748848960257,0.4778,2510.2,2510.1,1.17337203]
[1748848960463,1.9801,2510.2,2510.1,1.65119203]
[1748848961168,0.676,2510.2,2510.1,1.65119203]
[1748848961463,0.676,2510.2,2510.1,4.38142094]
[1748848961667,1.1538,2510.2,2510.1,4.38142094]
[1748848961868,0.676,2510.2,2510.1,4.38169358]
[1748848962068,1.1538,2510.2,2510.1,4.38169358]
[1748848965874,1.1538,2510.2,2510.1,4.38134122]
[1748848966373,1.1538,2510.2,2510.1,1.17354122]
[1748848966968,19.143,2510.2,2510.1,1.65136122]
[1748848967270,19.143,2510.2,2510.1,2.95456122]
[1748848968170,19.6208,2510.2,2510.1,2.47674122]
[1748848968375,7.71653,2510.6,2510.4,0.47775]
[1748848968669,19.62876,2510.5,2510.3,0.47778]
[1748848968872,0.47777,2510.4,2510.3,1.386]
[1748848969565,0.684,2510.5,2510.3,1.386]
[1748848969768,0.684,2510.5,2510.4,0.47777]
[1748848969968,19.151,2510.5,2510.4,0.47777]
[1748848970274,19.62875,2510.5,2510.4,1.386]
[1748848971373,1.16175,2510.5,2510.4,1.386]
[1748848971575,19.62875,2510.5,2510.4,1.386]
[1748848973165,0.47777,2510.4,2510.3,5.05476912]
[1748848973575,0.47777,2510.4,2510.3,4.38036912]
[1748848973777,0.47777,2510.4,2510.3,1.17256912]
[1748848974076,1.85617,2510.4,2510.3,1.17256912]
[1748848974571,0.47779,2510.3,2510.2,0.6968]
[1748848975073,0.4778,2510.2,2510.1,3.57259314]
[1748848975267,0.4778,2510.2,2510.1,0.635]
[1748848975467,0.4778,2510.2,2510.1,1.80794422]
[1748848975669,0.4778,2510.2,2510.1,1.80797009]
[1748848976267,1.3784,2510.4,2510.1,1.80797009]
[1748848976461,0.4778,2510.3,2510.2,1.17297009]
[1748848976677,0.4778,2510.3,2510.2,2.52747009]
[1748848978676,0.4778,2510.3,2510.2,1.3545]
[1748848979068,0.4778,2510.3,2510.2,2.52762558]
[1748848980175,18.9428,2510.3,2510.2,2.52762558]
[1748848980378,18.465,2510.3,2510.2,1.8323]
[1748848980578,18.94279,2510.3,2510.2,2.91866745]
[1748848980779,0.4778,2510.2,2510.1,2.19916745]
[1748848981079,0.4778,2510.2,2510.1,1.17476309]
[1748848982077,19.812,2510.3,2510.0,1.37476309]
[1748848982275,0.47782,2510.1,2510.0,1.4988]
[1748848982476,18.94181,2510.2,2510.0,5.18443]
[1748848982772,18.94181,2510.2,2510.1,2.47351133]
[1748848983380,18.94181,2510.2,2510.1,2.86296745]
[1748848983570,18.94181,2510.2,2510.1,1.2988]
[1748848987981,0.47782,2510.1,2510.0,4.97196745]
[1748848988485,4.50582,2510.1,2510.0,1.37384882]
[1748848988678,0.47784,2510.0,2509.9,0.00597229]
[1748848988885,5.62284,2510.0,2509.9,0.00597229]
[1748848991087,0.4779,2509.7,2509.6,1.17335119]
[1748848991282,0.47792,2509.6,2509.5,1.17335119]
[1748848991584,20.4536,2509.6,2509.3,1.17335119]
[1748848991787,0.47796,2509.4,2509.3,1.17335119]
[1748848992279,0.47798,2509.3,2509.2,1.17335119]
[1748848992479,0.47799,2509.2,2509.1,1.17932348]
[1748848992781,0.47799,2509.2,2509.0,1.17335119]
[1748848992782,0.47801,2509.1,2509.0,1.17335119]
[1748848992979,1.9906,2509.1,2508.7,3.2078]
[1748848993174,18.463,2509.0,2508.7,3.2078]
[1748848993377,0.47807,2508.8,2508.7,5.72955119]
[1748848993586,0.47807,2508.8,2508.7,3.2078]
[1748848994180,0.47811,2508.6,2508.5,1.1773327]
[1748848994387,6.46446,2508.9,2508.5,1.83051151]
[1748848994580,5.3559,2508.9,2508.6,0.4781]
[1748848994779,5.83395,2508.9,2508.7,1.3484]
[1748848994980,0.47807,2508.8,2508.7,1.3484]
[1748848995178,5.83396,2508.9,2508.7,1.3484]
[1748848995380,5.3559,2508.9,2508.7,1.3484]
[1748848996186,5.3559,2508.9,2508.6,3.2078]
[1748848996392,0.47808,2508.8,2508.6,3.2078]
[1748848996587,1.81618,2508.8,2508.6,3.2078]
[1748848996893,4.029,2508.9,2508.6,3.2078]
[1748848997089,4.029,2508.9,2508.7,1.78198]
[1748848997590,7.2368,2509.0,2508.8,0.47807]
[1748848997791,3.2078,2509.0,2508.9,0.47805]
[1748848998492,3.2078,2509.0,2508.9,2.46495]
[1748848998998,0.1992,2509.1,2509.0,0.47803]
[1748848999298,0.1992,2509.1,2509.0,1.3071]
[1748849000386,0.1992,2509.1,2508.9,0.683]
[1748849000593,1.13664,2509.0,2508.7,0.47808]
[1748849001187,0.47806,2508.9,2508.7,0.47808]
[1748849001385,1.79676,2508.9,2508.7,0.47808]
[1748849002089,1.3187,2508.9,2508.7,0.47808]
[1748849002792,1.79676,2508.9,2508.6,6.3882]
[1748849002996,1.79676,2508.9,2508.7,1.2785]
[1748849003188,1.79676,2508.9,2508.7,1.75659]
[1748849004195,1.79676,2508.9,2508.7,1.2785]
[1748849005095,1.79676,2508.9,2508.7,1.75659]
[1748849005096,0.47806,2508.9,2508.7,1.75659]
[1748849005393,18.467,2508.8,2508.7,1.2785]
[1748849005590,18.94507,2508.8,2508.7,1.2785]
[1748849007185,18.94507,2508.8,2508.7,1.75659]
[1748849007392,18.94507,2508.8,2508.7,1.2785]
[1748849007694,0.47807,2508.8,2508.7,1.2785]